Cogmind - Beta 11 X7 @@@ ROGUE MODE // 2021.09.15 @ 09:40:05 Player: thingamajigger Result: Destroyed by DAS Turret with DAS Cannon Performance ------------- Evolutions (1) 500 Regions Visited (5) 1000 Robots Destroyed (44) 220 Value Destroyed (935) 935 Prototype IDs (26) 520 Alien Tech Used (0) 0 Bonus (389) 389 TOTAL SCORE: 3564 Bonus ------- Follower Combat Kills 89 Aligned with FarCom 300 Cogmind --------- Core Integrity 0/400 Matter 229/300 Energy 77/100 System Corruption 0% Temperature Cool (3) Movement Treading (250) Ox1 Location -9/Exiles Parts ------- > --- POWER (1) -------- (None) > --- PROPULSION (3) --- Improved Treads Advanced Treads Advanced Treads > --- UTILITY (3) ------ Huge Storage Unit Improved Weapon Shielding > --- WEAPON (2) ------- Heavy Assault Rifle 8R-AWN's Boregun > --- INVENTORY (25) --- Advanced Treads Advanced Treads Cooling System Large Storage Unit High-capacity Matter Pod (200) Gravity Neutralizing Apparatus Improved Weapon Shielding Improved Medium Laser Improved Medium Laser Improved Medium Laser Pulse Rifle Pulse Rifle Light Assault Rifle Light Assault Rifle Grenade Launcher Peak State ------------ > --- POWER ------------ (None) > --- PROPULSION ------- Light Treads Improved Treads Advanced Treads > --- UTILITY ---------- Huge Storage Unit Advanced Weapon Cycler Improved Weapon Shielding > --- WEAPON ----------- Heavy Assault Rifle 8R-AWN's Boregun > --- INVENTORY -------- Advanced Treads Advanced Treads Advanced Treads Cooling System Large Storage Unit High-capacity Matter Pod Gravity Neutralizing Apparatus Improved Weapon Shielding Improved Medium Laser Improved Medium Laser Improved Medium Laser Pulse Rifle Pulse Rifle Light Assault Rifle Light Assault Rifle Grenade Launcher [Rating: 34] Favorites ----------- Power Ion Engine Engine Ion Engine Propulsion Light Treads Treads Light Treads Utility Huge Storage Unit Device Cooling System Storage Huge Storage Unit Processor Targeting Computer Hackware Hacking Suite Protection Improved Weapon Shielding Weapon Improved Medium Laser Energy Gun Improved Medium Laser Ballistic Gun Assault Rifle Launcher Grenade Launcher Build | -11 -10 -10 -9 -9 -9 ------- Run | Scr Mat Min Mat Min Exi Slots Evolved 2 | . . . 2 . . Power . | . . . . . . Propulsion 1 | . . . 1 . . Utility 1 | . . . 1 . . Weapon . | . . . . . . Parts Attached 50 | 6 2 3 17 6 16 Power 2 | 1 . 1 . . . Engine 2 | 1 . 1 . . . Core . | . . . . . . Reactor . | . . . . . . Propulsion 18 | 2 . 1 7 3 5 Treads 18 | 2 . 1 7 3 5 Leg . | . . . . . . Wheel . | . . . . . . Hover . | . . . . . . Flight . | . . . . . . Utility 15 | 1 2 . 5 1 6 Device 4 | . . . 2 . 2 Storage 3 | 1 1 . 1 . . Processor 1 | . 1 . . . . Hackware 1 | . . . 1 . . Protection 6 | . . . 1 1 4 Artifact . | . . . . . . Weapon 15 | 2 . 1 5 2 5 Energy Gun 7 | . . 1 4 2 . Energy Cannon . | . . . . . . Ballistic Gun 6 | 2 . . . . 4 Ballistic Cannon . | . . . . . . Launcher 2 | . . . 1 . 1 Special Weapon . | . . . . . . Impact Weapon . | . . . . . . Slashing Weapon . | . . . . . . Piercing Weapon . | . . . . . . Special Melee Weapon . | . . . . . . Unidentified Prototypes 3 | . . . 1 . 2 Parts Lost 13 | . . 3 1 . 9 Power 2 | . . 1 . . 1 Propulsion 7 | . . 1 1 . 5 Utility 3 | . . . . . 3 Weapon 1 | . . 1 . . . Highest Loss Streak 7 | . . 2 1 . 7 Average Slot Usage (%) 98 | . 93 99 98 99 97 Engine 11 | . 14 13 11 11 9 Treads 31 | . 28 27 32 33 32 Device 5 | . . . 6 11 8 Storage 11 | . 14 14 11 11 11 Processor 4 | . 7 14 3 . . Hackware 3 | . . . 9 1 . Protection 4 | . . . . 9 12 Energy Gun 11 | . . 12 19 21 . Ballistic Gun 11 | . 28 15 2 . 21 Naked Turns . | . . . . . . Heaviest Build 95 | 11 26 29 94 95 95 Greatest Support 67 | 40 40 40 60 60 67 Greatest Overweight (x) 1 | . . 1 1 1 1 Average Overweight (x) . | . . . . 1 1 Largest Inventory Capacity 25 | 8 15 15 25 25 25 Average Capacity 20 | 6 14 15 21 25 25 Most Carried 25 | 1 7 14 25 25 25 Average Carried 17 | . 5 9 20 24 22 Final Capacity 25 | 8 15 15 25 25 25 Final Carried 25 | 1 7 14 25 25 15 Class Distribution -------------------- 51% | Scavenger-Mutant 48% | Mutant Dominant Class ---------------- Mutant | -10/Materials Mutant | -10/Mines Scavenger-Mutant | -9/Materials Scavenger-Mutant | -9/Mines Scavenger-Mutant | -9/Exiles Resources | -11 -10 -10 -9 -9 -9 ----------- Run | Scr Mat Min Mat Min Exi Matter Collected 1211 | 164 171 126 289 70 391 Remotely . | . . . . . . Salvage Created 1833 | . 145 224 1140 200 124 Parts 99 | . 5 13 62 16 3 Haulers Intercepted 6 | . 1 . 5 . . Recyclers Shooed 1 | . . 1 . . . Parts Field Recycled . | . . . . . . Retrieved Matter . | . . . . . . Parts Self-Destructed . | . . . . . . Prevented . | . . . . . . Kills | -11 -10 -10 -9 -9 -9 ------- Run | Scr Mat Min Mat Min Exi Combat Hostiles Destroyed 32 | . 2 5 15 7 3 Guns 26 | . 2 5 11 7 1 AOE 5 | . . . 3 . 2 Classes Destroyed 10 | . 2 3 4 . 1 Worker 1 | . . 1 . . . Builder 1 | . . . 1 . . Hauler 6 | . 1 . 5 . . Recycler 4 | . . 1 2 1 . Operator 1 | . . . 1 . . Watcher 1 | . . . 1 . . Swarmer 11 | . . 3 1 7 . Grunt 12 | . 2 2 8 . . Sentry 6 | . . . 6 . . Assembled 2 | . . . . . 2 Best Kill Streak 5 | . 2 5 5 4 2 Combat Bots Only 5 | . 2 5 3 4 2 Max Kills in Single Turn 4 | . 1 1 4 2 2 Gunslinging 1 | . . . . 1 . Exploded 2 | . . . 2 . 2 Melee . | . . . . . . Uniques/NPCs Destroyed 1 | . . . . . 1 8R-AWN (-9/Exiles) Combat | -11 -10 -10 -9 -9 -9 -------- Run | Scr Mat Min Mat Min Exi Damage Taken 3353 | . 115 468 655 199 1916 Core 467 | . 17 43 112 19 276 Absorbed by Shields . | . . . . . . Core Remaining (%) 88 | 100 . 76 . . . Volleys Fired 194 | . 21 22 66 13 72 Largest 2 | . 2 2 2 2 2 Hottest 112 | . 40 70 112 112 43 Shots Fired 378 | . 42 44 129 26 137 Gun 374 | . 42 44 127 26 135 Cannon . | . . . . . . Launcher 4 | . . . 2 . 2 Special . | . . . . . . Kinetic 236 | . 42 33 26 . 135 Thermal 138 | . . 11 101 26 . Explosive 4 | . . . 2 . 2 Electromagnetic . | . . . . . . Robot Hit Streak 28 | . 4 8 13 5 28 Robot Miss Streak 5 | . 5 4 3 4 3 Penetration Max . | . . . . . . Secondary Targets 9 | . . 3 2 4 . Max Gunslinging Chain 1 | . . 1 1 1 . Shots Hit Robots 272 | . 26 29 95 13 109 Core Hits 89 | . 8 10 41 8 22 Critical Kills . | . . . . . . Critical Parts Destroyed 2 | . . . 1 . 1 Critical Strikes 11 | . . 1 8 1 1 Burn 9 | . . 1 7 1 . Destroy 2 | . . . 1 . 1 Melee Attacks . | . . . . . . Impact . | . . . . . . Slashing . | . . . . . . Piercing . | . . . . . . Sneak Attacks . | . . . . . . Combat Hostiles . | . . . . . . Follow-up Attacks . | . . . . . . Damage Inflicted 3842 | . 266 343 1700 250 1283 Guns 3555 | . 266 343 1491 250 1205 Cannons . | . . . . . . Explosions 287 | . . . 209 . 78 Melee . | . . . . . . Ramming . | . . . . . . Kinetic 1938 | . 266 244 223 . 1205 Thermal 1617 | . . 99 1268 250 . Explosive 287 | . . . 209 . 78 Electromagnetic . | . . . . . . Impact . | . . . . . . Slashing . | . . . . . . Piercing . | . . . . . . Highest Corruption . | . . . . . . Average Corruption . | . . . . . . Corruption Purged . | . . . . . . Overload Shots . | . . . . . . Overflow Damage . | . . . . . . Projectiles . | . . . . . . Explosions . | . . . . . . Melee . | . . . . . . Knockbacks . | . . . . . . Impact . | . . . . . . Kinetic . | . . . . . . Secondary . | . . . . . . Self-Inflicted Damage 34 | . . . . . 34 Shots 1 | . . . . . 1 Rammed . | . . . . . . Targets Rammed . | . . . . . . Kicked . | . . . . . . Crushed . | . . . . . . Highest Temperature 370 | . 27 27 370 . 4 Average Temperature 80 | . 8 12 109 . 2 Received Heat Transfer 558 | . 78 195 285 . . Effects 3 | . . . 3 . . Shutdowns 1 | . . . 1 . . Interference 1 | . . . 1 . . Matter Decay 1 | . . . 1 . . Siege Activations . | . . . . . . Robots Corrupted . | . . . . . . Combat Hostiles . | . . . . . . Parts Fried . | . . . . . . Impact Corruptions . | . . . . . . Robots Melted 1 | . . . 1 . . Combat Hostiles 1 | . . . 1 . . Parts Melted 14 | . . 2 10 2 . Heat Transferred 4366 | . . 370 3404 592 . Parts Sabotaged . | . . . . . . Parts Stolen . | . . . . . . Parts Stripped . | . . . . . . Power Chain Reactions . | . . . . . . Missiles Intercepted . | . . . . . . Alert | -11 -10 -10 -9 -9 -9 ------- Run | Scr Mat Min Mat Min Exi Peak Influence 338 | . 79 135 338 238 . Initial 73 | . . . 1 73 . Average 111 | . 41 22 195 126 . Maximum Alert Level 1 | . . . 1 1 . Low Security (%) 71 | 100 100 100 43 65 . Level 1 28 | . . . 56 34 . Level 2 . | . . . . . . Level 3 . | . . . . . . Level 4 . | . . . . . . Level 5 . | . . . . . . High Security . | . . . . . . Max Security . | . . . . . . Squads Dispatched 3 | . . . 3 . . Investigation . | . . . . . . Extermination . | . . . . . . Reinforcement 3 | . . . 3 . . Assault . | . . . . . . Garrison . | . . . . . . Intercept . | . . . . . . Construction Impeded . | . . . . . . Haulers Reinforced . | . . . . . . Active Scanning Responses . | . . . . . . Cargo Convoy Interrupts . | . . . . . . Stealth | -11 -10 -10 -9 -9 -9 --------- Run | Scr Mat Min Mat Min Exi Distress Signals 2 | . . . 2 . . Communications Jammed . | . . . . . . Distress Signals . | . . . . . . Times Spotted 62 | . 8 9 35 6 4 Peak Tracking Total 7 | . 4 5 7 3 7 Tactical Retreats 5 | . . 1 . . 4 Traps | -11 -10 -10 -9 -9 -9 ------- Run | Scr Mat Min Mat Min Exi Traps Triggered . | . . . . . . Indirectly . | . . . . . . Trap Hack Attempts . | . . . . . . Triggered . | . . . . . . Disarmed . | . . . . . . Reprogrammed . | . . . . . . Reused 2 | . . 1 . . 1 Traps Extracted . | . . . . . . Installed 4 | . . 1 . . 3 Triggered 1 | . . 1 . . . Machines | -11 -10 -10 -9 -9 -9 ---------- Run | Scr Mat Min Mat Min Exi Machines Disabled 9 | . . . 2 . 7 Max in Single Turn 3 | . . . 1 . 3 Machines Sabotaged . | . . . . . . Garrisons Compromised . | . . . . . . Overloaded Fab Kills . | . . . . . . Fab Network Shutdowns . | . . . . . . Hacking | -11 -10 -10 -9 -9 -9 --------- Run | Scr Mat Min Mat Min Exi Machines Accessed 9 | . 2 . 5 . 2 Terminals 7 | . 2 . 5 . . Fabricators . | . . . . . . Repair Stations . | . . . . . . Recycling Units . | . . . . . . Scanalyzers . | . . . . . . Garrison Access . | . . . . . . Total Hacks 34 | . 8 . 24 . 2 Successful 22 | . 4 . 16 . 2 Failed 11 | . 4 . 7 . . Catastrophic . | . . . . . . Database Lockouts 1 | . . . 1 . . Manual 28 | . 7 . 20 . 1 Terminals 32 | . 8 . 24 . . Fabricators . | . . . . . . Repair Stations . | . . . . . . Recycling Units . | . . . . . . Scanalyzers . | . . . . . . Garrison Access . | . . . . . . Terminal Hacks 13 | . 2 . 9 . 2 Record 1 | . . . . . 1 Robot Analysis 5 | . 1 . 4 . . Branch Access Points 1 | . . . 1 . . Terminal Index 1 | . . . 1 . . Alert Level 1 | . . . 1 . . Locate Traps 3 | . 1 . 2 . . EX-Prototype ID Bank 1 | . . . . . 1 Fabricator Hacks . | . . . . . . Repair Station Hacks . | . . . . . . Recycling Unit Hacks . | . . . . . . Scanalyzer . | . . . . . . Garrison Access Hacks . | . . . . . . Unauthorized Hacks 9 | . 2 . 7 . . Terminals 9 | . 2 . 7 . . Track 6 | . 1 . 5 . . Botnet 3 | . 1 . 2 . . Fabricators . | . . . . . . Repair Stations . | . . . . . . Recycling Units . | . . . . . . Scanalyzers . | . . . . . . Garrison Access . | . . . . . . Data Cores Recovered . | . . . . . . Used . | . . . . . . Hacking Detections 6 | . 2 . 4 . . Full Trace Events . | . . . . . . Feedback Events . | . . . . . . Feedback Blocked . | . . . . . . Robot Schematics Acquired . | . . . . . . Robots Built . | . . . . . . Matter . | . . . . . . Time . | . . . . . . Total Robot Build Rating . | . . . . . . Part Schematics Acquired . | . . . . . . Parts Built . | . . . . . . Matter . | . . . . . . Time . | . . . . . . Total Part Build Rating . | . . . . . . Parts Repaired . | . . . . . . Time . | . . . . . . Parts Recycled . | . . . . . . Recycled Matter . | . . . . . . Retrieved Matter . | . . . . . . Retrieved Components . | . . . . . . Parts Scanalyzed . | . . . . . . Part Schematics Acquired . | . . . . . . Parts Damaged . | . . . . . . Bothacking | -11 -10 -10 -9 -9 -9 ------------ Run | Scr Mat Min Mat Min Exi Used RIF Installer . | . . . . . . Robots Hacked . | . . . . . . Non-combat . | . . . . . . Combat . | . . . . . . Robot Hacks Applied . | . . . . . . Relay Couplers Released . | . . . . . . Robots Rewired . | . . . . . . Allies Hacked . | . . . . . . Hacks Repelled . | . . . . . . Allies | -11 -10 -10 -9 -9 -9 -------- Run | Scr Mat Min Mat Min Exi Total Allies 1 | . . 1 . . . Largest Group 1 | . . 1 1 . . Highest-Rated Group 31 | . . 31 31 . . Highest-Rated Ally 31 | . . 31 31 . . Total Orders . | . . . . . . Ally Attacks 34 | . . 12 22 . . Total Damage 331 | . . 125 206 . . Kills 8 | . . 3 5 . . Allies Corrupted 1 | . . . 1 . . Allies Melted . | . . . . . . Intel | -11 -10 -10 -9 -9 -9 ------- Run | Scr Mat Min Mat Min Exi Robot Analysis Total 5 | . 1 . 4 . . Derelict Logs Recovered 3 | . . 2 . 1 . Drone Launches . | . . . . . . Drone Recoveries . | . . . . . . Exploration | -11 -10 -10 -9 -9 -9 ------------- Run | Scr Mat Min Mat Min Exi Turns Passed 6022 | 66 428 1422 1827 785 1494 Spaces Moved 2470 | 39 220 758 701 282 470 Core 5 | 5 . . . . . Treads 2465 | 34 220 758 701 282 470 Legs . | . . . . . . Wheels . | . . . . . . Hover . | . . . . . . Flight . | . . . . . . Fastest Speed 50 | 50 160 160 160 260 250 Average Speed 207 | 145 160 161 219 260 259 Slowest Speed 260 | 160 160 260 260 260 260 Overloaded Moves . | . . . . . . Propulsion Burnouts . | . . . . . . Robots Hopped . | . . . . . . Cave-ins Triggered . | . . . . . . Exploration Rate (%) 53 | 4 35 99 63 55 66 Regions Visited 5 Branch Regions 3 Pre-discovered Areas 3 | . . 1 . 1 1 Known Exits Taken 2 | . . 1 1 . . Unknown Exits Taken 3 | 1 1 . . 1 . Scrap Searched 2 | . . 1 . 1 . Spaces Dug . | . . . . . . Terrain Destroyed 19 | . . . 12 . 7 Melee . | . . . . . . Projectile 1 | . . . . . 1 AOE 18 | . . . 12 . 6 Terrain Rammed . | . . . . . . Walls Destroyed . | . . . . . . Machines Disabled . | . . . . . . Actions | -11 -10 -10 -9 -9 -9 --------- Run | Scr Mat Min Mat Min Exi Total 3034 | 45 258 916 872 312 631 Wait 228 | . 9 122 44 . 53 Move 2465 | 38 219 757 700 281 470 Hop . | . . . . . . Pick Up 53 | 1 6 10 26 6 4 Fast Attach 17 | 6 2 1 5 . 3 Attach 24 | . . 2 5 6 11 Detach 5 | . . . 1 1 3 Swap 9 | . . . 7 . 2 Drop 35 | . 1 1 18 5 10 Fire 194 | . 21 22 66 13 72 Melee . | . . . . . . Ram . | . . . . . . Kick . | . . . . . . Crush . | . . . . . . Escape Stasis . | . . . . . . Rewire . | . . . . . . Trap 4 | . . 1 . . 3 Miscellaneous . | . . . . . . Route ------- -11/Scrapyard -10/Materials (discovered 2 exits: *Mat / [*Min]) -10/Mines (discovered 2 exits: *Mat x2) -9/Materials (discovered 4 exits: [*Mat x2] / *Min x2) -9/Mines (discovered 3 exits: [*Mat x2] / *Exi) -9/Exiles History --------- Turn | Location | Event 3 | -11/Scrapyard | Discovered new exit (range 15) 67 | -11/Scrapyard | Entered Materials 306 | -10/Materials | Build established: Mutant 393 | -10/Materials | Discovered new exit (range 8) 482 | -10/Materials | Discovered new exit (range 8) 495 | -10/Materials | Entered Mines 866 | -10/Mines | Discovered new exit (range 10) 1087 | -10/Mines | Identified exit to Materials 1113 | -10/Mines | YI-UF0 nonchalantly dropped a Grenade Launcher on the ground 1124 | -10/Mines | Found a hidden stash of uninstalled traps 1166 | -10/Mines | Learned location of Zion (-6) 1294 | -10/Mines | Assembled infested the area 1305 | -10/Mines | Met a Derelict testing a Signal Generator 1917 | -10/Mines | Entered Materials 1917 | -9/Materials | Accompanied by 1 ally 1917 | -9/Materials | Evolved 2 slots: Propulsion x1, Utility x1 2774 | -9/Materials | Build established: Scavenger-Mutant 2833 | -9/Materials | Discovered new exit (range 8) 2996 | -9/Materials | Discovered new exit (range 8) 3209 | -9/Materials | Central database locked down 3271 | -9/Materials | Discovered new exit (range 15) 3581 | -9/Materials | Identified exit to Mines 3744 | -9/Materials | Entered Mines 3986 | -9/Mines | Discovered new exit (range 11) 4098 | -9/Mines | Discovered new exit (range 4) 4519 | -9/Mines | Deemed a non-threat by the Exiles lab entrance 4519 | -9/Mines | Discovered new exit (range 5) 4529 | -9/Mines | Entered Exiles 4602 | -9/Exiles | Met 8R-AWN 4649 | -9/Exiles | Met EX-HEX 4785 | -9/Exiles | Met EX-DEC 5016 | -9/Exiles | Met EX-BIN 5053 | -9/Exiles | Aligned with FarCom system 5055 | -9/Exiles | Given EX-Vault access code 5115 | -9/Exiles | Opened EX-Vault 5175 | -9/Exiles | Warned to stay clear of 0b10 Research branches 5613 | -9/Exiles | Attacked by the Exiles 5833 | -9/Exiles | Lost 7 parts (1p4n2u) 5833 | -9/Exiles | Core integrity fell below 50% 5878 | -9/Exiles | Destroyed 8R-AWN 5927 | -9/Exiles | Found Prototype Ballistic Gun 5927 | -9/Exiles | Identified 8R-AWN's Boregun 6018 | -9/Exiles | Core integrity fell below 20% 6023 | -9/Exiles | Destroyed by DAS Turret with DAS Cannon Last Messages --------------- 05870_ HV Slug penetrates Earth. 05870_ Penetrated by HV Slug. 05878_ 8R-AWN destroyed. 05884_ Acquired 112 matter. 05894_ Dropped Imp. Weapon Shielding. 05900_ Acquired Adv. Weapon Cycler. 05912_ Acquired Prototype Device. 05912_ Identified Gravity Neutralizing Apparatus. 05926_ Dropped Lgt. Assault Rifle. 05927_ Acquired Prototype Ballistic Gun. 05927_ Identified 8R-AWN's Boregun. 05987_ HV Slug penetrates Wall. 05987_ HV Slug penetrates Machine. 05987_ Machine disabled. 05988_ HV Slug penetrates Wall. 05991_ HV Slug penetrates Machine. 05993_ Acquired 7 matter. 06017_ Adv. Weapon Cycler destroyed. 06017_ Critical hit (Blast). 06021_ Lgt. Treads destroyed. Map ----- +----------------------------------------------------+ | ?????????????????????????????????"""""?# #???# | | ????????????????????????????????"""" ## #???? | | ???????????????????????????????#""X" #???? | | ???????????????????????????????#" #???? | | ???????????????????????????????#" ## #???? | | ???????????????????????????????#""""""?# #?### | | ???????????????????????????????##"###??# #?#"" | | ???????????????????????????????????????# #?#"" | | ???????????????????????????????????????# #?#"" | | ??????????????????????????????????????## ###"" | | ??????#######?????????????????????????#" | | ??????#!!! "#?????????????????????????#" | | ??????# "#?????????????????????????#" | | ??????# "#?????????????????????????#" | | #????## ""#?????????????#???????????#" | | ##### "#???????????? """????????#" | | ##" "#????????????" """#???????## | | #"" #?????????????" #????????# | | #????????????"" #????????#" "X | | #????????????"" "#????????#" "" | | # ! #???????????? ""?????????#" """" | | " ###???????????" "?????????##" ##### | | ! ##??????????# #????????##"" #???? | | [ " ######?##### ###?######"" #???? | | "###" % ""###%#X# #"###""""""" ##??? | | ##??#" @ """""" " "" ##?? | | ###???#"# % "" """ " ### | | #??????#### %% " " | | ??????????### | | ????????????### | | ??????????????## | | ???????????????## | | ????????????????## | | ?????????????????# "" """""" | | ????????????????## ######""" | | ????????????????#"" ""##????#####""" | | ????????????????#"" """##?????????##""" | | ????????????????""" """##???????????#""" | | ????????????????""" ""#???????????##"" | | ????????????????"" ########??####"""" | | ????????????????""" ## ####""" | | ????????????????"" """" | | ????????????????#"" | | ????????????????#"""" | | ?????????????????# | | ??????????????????" " "" | | ??????????????????"""" ""## ##""" " | | ???????????????????" ""#### ######" | | ??????????????????? """"##??# #????## | | ???????????????????"" """#??## ####??? | +----------------------------------------------------+ Best States ------------- Heat Dissipation 50 Energy Generation 10 Energy Capacity 250 Matter Stores 300 Matter Capacity 300 Sight Range 16 Terrain Scan Density 10 Armor Coverage 150 Weapon Shielding 66 Weapon Cycling 25 Evasion (%) 40 Targeting Accuracy 5 Recoil Reduction 3 Offensive Hacking 10 Item Schematics ----------------- None Robot Schematics ------------------ None Fabricated ------------ Nothing Alien Tech Used ----------------- None Achievements -------------- None Challenges ------------ None Game ------ Seed LaserSignalInitializer Manual? 0 Play Time 00:25:39 Cumulative 109.9 hours Start 2021.09.15 @ 09:18:58 End 2021.09.15 @ 09:40:05 Sessions 1 Manual Loads 0 Difficulty Rogue Special Mode None Game No. 186 Rogue 169 Adventurer 4 Explorer 13 Win Type - Total 8 Types 6/0/0/2/0/0/0/0/0 Lore% 63 Gallery% 80 Achievement% 67 Wizard Run 0 Options --------- ASCII 0 Keyboard 1 Movement Numpad Keybinds 0 Fullscreen 1 Font 18/SmallcapsGlow Map View 76x50 Tactical HUD 1 Map Filters NONE Filters NONE Steam 1 RUN: b70404e8-06c9-4bd2-adcb-543125ed4739